bitfinex/quotes_SOLUSD_20220208
["timestamp","ask_amount","ask_price","bid_price","bid_amount"]
[1644295116042,51.06822572,118.61,118.54,1.65560081]
[1644295116343,51.06822572,118.61,118.55,34.60369552]
[1644295116744,12.905,118.61,118.55,34.60369552]
[1644295116945,12.655,118.61,118.55,34.60369552]
[1644295118046,34.98856276,118.6,118.55,34.60369552]
[1644295118245,47.64296276,118.6,118.53,23.8517]
[1644295118443,47.64296276,118.6,118.51,12.26]
[1644295118444,47.64296276,118.6,118.51,12.6553]
[1644295119045,24.4878,118.63,118.51,14.55666733]
[1644295119247,22.9096,118.62,118.52,24.8512]
[1644295119549,12.6531,118.61,118.54,12.6522]
[1644295119748,12.6531,118.61,118.54,12.9022]
[1644295120150,12.9031,118.61,118.55,43.82568068]
[1644295121550,12.6531,118.61,118.55,43.82568068]
[1644295121747,12.9031,118.61,118.55,43.82568068]
[1644295122350,12.6531,118.61,118.55,44.07568068]
[1644295122550,42.1703,118.66,118.56,1.65136733]
[1644295122750,42.1703,118.66,118.56,37.75086733]
[1644295122949,42.1703,118.66,118.56,43.75086733]
[1644295123352,42.1703,118.66,118.56,23.5895]
[1644295123552,12.6507,118.64,118.57,47.9876129]
[1644295123772,41.92847741,118.63,118.57,47.9876129]
[1644295125777,12.653,118.62,118.57,47.9876129]
[1644295127179,35.07227936,118.61,118.57,47.9876129]
[1644295127580,12.6534,118.61,118.57,47.9876129]
[1644295127979,24.2794,118.64,118.57,47.9876129]
[1644295128180,44.57045691,118.67,118.57,49.88898023]
[1644295128379,24.2766,118.68,118.58,24.9446]
[1644295128380,48.556,118.68,118.58,24.9446]
[1644295128579,60.88619426,118.67,118.59,42.95483036]
[1644295128782,60.88619426,118.67,118.59,43.20483036]
[1644295129186,24.2794,118.68,118.59,44.85619769]
[1644295129383,24.2794,118.68,118.59,63.11619769]
[1644295129785,12.6456,118.69,118.62,12.6442]
[1644295129987,0.19393764,118.71,118.62,12.6442]
[1644295130187,37.81086057,118.71,118.62,12.6442]
[1644295130385,37.81086057,118.71,118.6,36.9103]
[1644295130688,37.81086057,118.71,118.61,1.65136733]
[1644295130887,50.45386057,118.71,118.62,12.26]
[1644295131288,50.45386057,118.71,118.63,37.41706973]
[1644295131489,50.45386057,118.71,118.62,12.26]
[1644295131888,50.45386057,118.71,118.6,36.9103]
[1644295132290,53.10721748,118.71,118.6,36.9103]
[1644295133890,55.23727078,118.71,118.57,34.8511]
[1644295134090,4.79994579,118.7,118.55,37.0922]
[1644295134293,12.6506,118.66,118.55,37.0922]
[1644295134491,12.6506,118.66,118.55,43.3422]
[1644295134911,39.18436496,118.65,118.56,60.2716306]
[1644295135091,39.18436496,118.65,118.58,34.43777112]
[1644295135691,51.83396496,118.65,118.58,34.43777112]
[1644295136091,52.08396496,118.65,118.58,34.43777112]
[1644295136692,12.6496,118.65,118.58,34.68777112]
[1644295136893,4.09364389,118.69,118.58,54.60448265]
[1644295137091,4.09364389,118.69,118.59,22.7908]
[1644295137092,1.69028698,118.69,118.59,22.7908]
[1644295137291,1.69028698,118.69,118.59,35.3008]
[1644295137490,1.69028698,118.69,118.59,41.3008]
[1644295137691,44.34063176,118.68,118.6,38.55419278]
[1644295137891,56.98733176,118.68,118.6,51.20039278]
[1644295138091,56.98733176,118.68,118.6,51.45039278]
[1644295138790,57.23733176,118.68,118.6,51.45039278]
[1644295138991,56.98733176,118.68,118.6,51.45039278]
[1644295139195,56.98733176,118.68,118.61,24.6766]
[1644295139396,56.98733176,118.68,118.62,38.94558157]
[1644295139593,44.34063176,118.68,118.62,38.94558157]
[1644295139894,44.34063176,118.68,118.61,24.6766]
[1644295140894,44.34063176,118.68,118.61,59.91370098]
[1644295141498,12.6458,118.68,118.61,35.23710098]
[1644295142596,60.74237671,118.67,118.6,12.6463]
[1644295142797,60.74237671,118.67,118.59,29.4209]
[1644295142997,60.74237671,118.67,118.59,23.4209]
[1644295143399,60.74237671,118.67,118.54,56.08131153]
[1644295143599,22.6771,118.66,118.58,12.8982]
[1644295143798,35.3253,118.66,118.6,47.32019395]
[1644295144700,35.5753,118.66,118.6,47.32019395]
[1644295146204,41.48552932,118.65,118.6,47.32019395]
[1644295146401,54.13532932,118.65,118.6,47.32019395]
[1644295146604,54.13532932,118.65,118.59,22.7309]
[1644295146907,54.13532932,118.65,118.56,12.6496]
[1644295147102,54.13532932,118.65,118.57,24.3292]
[1644295147504,54.13532932,118.65,118.58,41.5048041]
[1644295150208,54.38532932,118.65,118.58,41.7548041]
[1644295151213,12.8998,118.65,118.58,41.7548041]
[1644295151912,12.8998,118.65,118.58,41.5048041]
[1644295152312,54.55529467,118.65,118.58,41.5048041]
[1644295154018,12.8998,118.65,118.58,41.5048041]
[1644295154817,29.9698,118.65,118.58,41.5048041]
[1644295155019,35.20489664,118.64,118.58,41.5048041]
[1644295155320,12.6512,118.63,118.57,24.3292]
[1644295156221,12.6512,118.63,118.58,34.56182805]
[1644295157225,29.7197,118.65,118.58,34.56182805]
[1644295158048,41.97342985,118.64,118.58,34.56182805]
[1644295158249,54.62412985,118.64,118.58,34.56182805]
[1644295158948,12.6507,118.64,118.58,34.56182805]
[1644295159156,12.9007,118.64,118.58,34.56182805]
[1644295159350,17.07,118.65,118.58,34.81182805]
[1644295159550,17.07,118.65,118.58,46.10082805]
[1644295159753,17.07,118.65,118.58,52.10082805]
[1644295159951,56.2149493,118.65,118.58,52.10082805]
[1644295160152,56.2149493,118.65,118.58,64.74892805]
[1644295160451,68.8641493,118.65,118.58,45.85082805]
[1644295160653,68.8641493,118.65,118.58,34.56182805]
[1644295160851,69.1141493,118.65,118.58,34.56182805]
[1644295161053,69.1141493,118.65,118.57,24.3292]
[1644295161456,69.1141493,118.65,118.63,1.5161872]
[1644295162053,29.9692,118.65,118.63,1.5161872]
[1644295162256,29.7192,118.65,118.63,1.5161872]
[1644295162453,17.07,118.65,118.63,1.5161872]
[1644295163958,29.7188,118.65,118.63,1.5161872]
[1644295164158,29.9688,118.65,118.63,1.5161872]
[1644295164759,29.7188,118.65,118.63,1.5161872]
[1644295168062,30.92135909,118.65,118.63,1.5161872]
[1644295171367,29.7188,118.65,118.63,1.5161872]
[1644295171566,29.7188,118.65,118.55,12.26]
[1644295171767,2.1300533,118.64,118.53,12.26]
[1644295171966,2.1300533,118.64,118.51,48.51193152]
[1644295171967,12.6549,118.59,118.54,23.3539]
[1644295172171,19.47335691,118.65,118.52,12.26]
[1644295172368,1.20252731,118.63,118.55,1.66318985]
[1644295172569,17.07,118.65,118.56,12.26]
[1644295172869,17.07,118.65,118.57,1.66318985]
[1644295173068,17.07,118.65,118.57,19.92318985]
[1644295173268,56.16891167,118.65,118.58,57.83521504]
[1644295173468,56.16891167,118.65,118.59,23.2627]
[1644295174071,56.16891167,118.65,118.55,12.26]
[1644295174370,68.81781167,118.65,118.56,24.0301]
[1644295174769,68.81781167,118.65,118.56,70.76434946]
[1644295174971,93.76991167,118.65,118.56,70.76434946]
[1644295177591,93.76991167,118.65,118.54,12.26]
[1644295177792,93.76991167,118.65,118.52,36.9588]
[1644295177996,96.17326858,118.65,118.52,24.6988]
[1644295178193,96.17326858,118.65,118.52,30.6988]
[1644295178403,12.6552,118.61,118.52,43.3533]
[1644295178593,35.7164,118.61,118.53,39.46257276]
[1644295178793,41.14100331,118.6,118.53,39.46257276]
[1644295179395,12.6564,118.58,118.53,39.46257276]
[1644295179595,48.28518751,118.58,118.53,39.46257276]
[1644295179797,48.28518751,118.58,118.52,24.6988]
[1644295180600,48.28518751,118.58,118.51,23.9813]
[1644295180798,48.28518751,118.58,118.52,46.81570744]
[1644295180997,12.6564,118.58,118.52,46.81570744]
[1644295182300,12.9064,118.58,118.52,47.06570744]
[1644295182598,12.9064,118.58,118.57,1.358463]
[1644295183698,12.6564,118.58,118.49,0.024]
[1644295184498,36.6244,118.58,118.49,0.024]
[1644295184699,73.66145894,118.58,118.49,48.54678092]
[1644295184900,36.8744,118.58,118.49,54.54678092]
[1644295185298,36.8744,118.58,118.49,54.79678092]
[1644295185598,36.8744,118.58,118.5,0.024]
[1644295185798,36.8744,118.58,118.51,46.72075626]
[1644295185799,71.83808065,118.58,118.51,46.72075626]
[1644295186001,36.8744,118.58,118.51,46.72075626]
[1644295186699,12.6564,118.58,118.51,52.97075626]
[1644295186899,12.6553,118.59,118.51,54.61705477]
[1644295187100,22.9523,118.6,118.51,52.97075626]
[1644295187300,22.9523,118.6,118.52,23.4424]
[1644295187702,22.9523,118.6,118.52,23.6924]
[1644295188302,35.24676411,118.59,118.53,34.81477304]
[1644295188703,12.6565,118.58,118.53,34.81477304]
[1644295189203,48.34866322,118.57,118.5,0.024]
[1644295189503,48.34866322,118.57,118.47,12.26]
[1644295189705,60.60866322,118.57,118.39,2.36190692]
[1644295189904,0.31440875,118.54,118.37,0.31718915]
[1644295190104,12.26,118.53,118.37,0.31718915]
[1644295190310,54.69526502,118.52,118.37,34.56393024]
[1644295190704,65.99268541,118.52,118.37,34.56393024]
[1644295190906,11.29742039,118.51,118.38,22.7173]
[1644295191109,36.57192927,118.5,118.39,41.89351843]
[1644295191508,12.6683,118.49,118.4,23.5115]
[1644295191708,44.60140627,118.48,118.41,45.34858275]
[1644295192815,12.6691,118.48,118.41,45.34858275]
[1644295193714,51.00380596,118.48,118.41,45.59858275]
[1644295193910,51.25380596,118.48,118.41,45.59858275]
[1644295194312,12.9191,118.48,118.41,45.59858275]
[1644295194817,12.9191,118.48,118.41,45.34858275]
[1644295195414,54.08508757,118.48,118.41,45.34858275]
[1644295195613,12.6666,118.5,118.41,45.59858275]
[1644295196221,12.6666,118.5,118.41,45.34858275]
[1644295196615,38.93185829,118.49,118.41,45.34858275]
[1644295196818,12.6683,118.48,118.41,45.34858275]
[1644295197117,12.26,118.51,118.41,45.34858275]
[1644295197318,12.26,118.51,118.41,45.59858275]
[1644295197525,12.51,118.51,118.41,45.34858275]
[1644295198119,35.35171306,118.5,118.41,45.34858275]
[1644295198520,48.01851306,118.5,118.41,45.34858275]
[1644295198723,41.8208118,118.48,118.41,45.34858275]
[1644295199119,43.9508651,118.48,118.41,45.34858275]
[1644295199320,41.8208118,118.48,118.41,45.34858275]
[1644295199520,14.6400533,118.51,118.41,45.34858275]
[1644295199721,12.6699,118.47,118.41,45.34858275]
[1644295200121,12.26,118.51,118.41,45.34858275]
[1644295200321,12.26,118.51,118.41,45.59858275]
[1644295200521,39.97591332,118.5,118.41,45.34858275]
[1644295200821,39.97591332,118.5,118.41,45.59858275]
[1644295201224,40.22591332,118.5,118.41,45.59858275]
[1644295201822,12.6679,118.49,118.41,45.59858275]
[1644295202023,12.6679,118.49,118.41,45.34858275]
[1644295203244,12.6679,118.49,118.41,45.59858275]
[1644295203645,12.6679,118.49,118.41,45.34858275]
[1644295204245,12.6679,118.49,118.41,45.59858275]
[1644295204645,12.6679,118.49,118.42,0.024]
[1644295205245,43.8080051,118.48,118.42,0.024]
[1644295205451,12.6694,118.47,118.41,45.37258275]
[1644295206247,46.97592314,118.46,118.41,45.37258275]
[1644295206646,12.6694,118.47,118.41,45.37258275]
[1644295207548,51.75269541,118.47,118.41,45.37258275]
[1644295208249,52.00269541,118.47,118.41,45.37258275]
[1644295208549,52.00269541,118.47,118.41,0.024]
[1644295209150,52.00269541,118.47,118.39,0.024]
[1644295209151,66.39274871,118.47,118.39,0.024]
[1644295209351,66.39274871,118.47,118.38,0.024]
[1644295209549,64.26269541,118.47,118.38,0.024]
[1644295210551,12.6761,118.44,118.38,0.024]
[1644295210751,24.9361,118.44,118.38,0.024]
[1644295210951,27.0661533,118.44,118.38,0.024]
[1644295211150,24.9361,118.44,118.38,0.024]
[1644295211352,36.51256217,118.43,118.38,0.024]
[1644295211557,12.6766,118.42,118.38,0.024]
[1644295211753,36.52262258,118.41,118.38,0.024]
[1644295211955,36.52262258,118.41,118.37,0.31718915]
[1644295212754,12.6766,118.4,118.37,0.31718915]
[1644295214458,12.9266,118.4,118.37,0.31718915]
[1644295214655,12.6766,118.4,118.37,0.31718915]
[1644295215857,12.6766,118.4,118.38,3.03219997]
[1644295216056,12.6766,118.4,118.37,0.31718915]
[1644295216958,12.6766,118.4,118.34,46.537]
[1644295217156,12.6766,118.4,118.3,12.6771]
[1644295217358,12.6766,118.4,118.31,23.158]
[1644295217556,2.1300533,118.39,118.31,23.158]
[1644295217756,12.6814,118.37,118.31,23.158]
[1644295218158,12.9314,118.37,118.32,41.89454831]
[1644295218760,12.6781,118.39,118.32,41.89454831]
[1644295219160,12.6781,118.39,118.32,41.39454831]
[1644295219762,12.6781,118.39,118.32,41.64454831]
[1644295220160,12.6781,118.39,118.32,43.28638831]
[1644295220360,12.62030028,118.39,118.32,43.28638831]
[1644295220561,12.26,118.38,118.26,2.36190692]
[1644295220762,4.41565052,118.29,118.25,2.8998124]
[1644295220962,12.6904,118.28,118.25,0.53790548]
[1644295221563,12.6904,118.28,118.25,40.75800524]
[1644295221764,4.41565052,118.29,118.26,6.06439994]
[1644295222969,4.41565052,118.29,118.27,45.09132811]
[1644295223766,4.41565052,118.29,118.19,24.8499]
[1644295223767,4.41565052,118.29,118.28,6.06439994]
[1644295223968,4.41565052,118.29,118.19,31.0999]
[1644295224166,4.41565052,118.29,118.19,25.0999]
[1644295224367,4.41565052,118.29,118.19,24.8499]
[1644295224568,4.66565052,118.29,118.19,24.8499]
[1644295224770,40.50979469,118.28,118.2,37.71303562]
[1644295225167,4.66565052,118.29,118.2,37.71303562]
[1644295225567,4.41565052,118.29,118.2,37.71303562]
[1644295225967,12.26,118.33,118.2,43.71303562]
[1644295226168,12.26,118.33,118.22,41.67850344]
[1644295226769,12.6864,118.32,118.22,41.67850344]
[1644295226966,24.9464,118.32,118.22,41.67850344]
[1644295227369,24.9464,118.32,118.22,41.92850344]
[1644295227567,12.26,118.32,118.22,41.92850344]
[1644295227867,15.43581498,118.38,118.22,41.92850344]
[1644295227868,12.26,118.35,118.22,41.92850344]
[1644295228068,15.43581498,118.38,118.23,24.6897]
[1644295228268,12.6842,118.34,118.23,37.623]
[1644295228692,12.6842,118.34,118.23,24.9397]
[1644295228970,56.72632715,118.33,118.24,42.68135983]
[1644295229370,56.97632715,118.33,118.24,42.68135983]
[1644295229570,12.6867,118.31,118.24,42.68135983]
[1644295229770,58.37403029,118.31,118.24,42.68135983]
[1644295230169,12.6867,118.31,118.24,42.68135983]
[1644295231570,52.19155323,118.31,118.24,42.68135983]
[1644295231972,12.6867,118.31,118.24,42.68135983]
[1644295232370,12.9367,118.31,118.24,42.68135983]
[1644295232575,0.25,118.31,118.24,42.93135983]
[1644295232871,12.26,118.35,118.25,0.024]
[1644295233072,53.69496444,118.35,118.25,0.024]
[1644295233871,66.37806444,118.35,118.25,0.024]
[1644295234074,66.62806444,118.35,118.25,0.024]
[1644295235473,66.62806444,118.35,118.25,23.5401]
[1644295235673,68.75811774,118.35,118.26,46.94790341]
[1644295235874,68.75811774,118.35,118.26,29.87790341]
[1644295236274,66.37806444,118.35,118.26,29.87790341]
[1644295236574,66.37806444,118.35,118.26,29.07790341]
[1644295237577,66.62806444,118.35,118.26,29.07790341]
[1644295238377,66.62806444,118.35,118.26,28.27790341]
[1644295238977,68.75811774,118.35,118.26,28.27790341]
[1644295239478,66.62806444,118.35,118.26,28.27790341]
[1644295239876,66.62806444,118.35,118.26,27.47790341]
[1644295241678,66.62806444,118.35,118.26,27.72790341]
[1644295241877,66.37806444,118.35,118.26,27.72790341]
[1644295242278,66.37806444,118.35,118.26,27.47790341]
[1644295242879,66.37806444,118.35,118.25,23.5161]
[1644295243079,2.1300533,118.34,118.25,23.5161]
[1644295243279,12.6868,118.32,118.25,23.5161]
[1644295243899,41.18226393,118.31,118.25,71.09620841]
[1644295244100,41.18226393,118.31,118.21,46.913]
[1644295244300,43.31231723,118.31,118.21,46.913]
[1644295244600,14.3900533,118.3,118.18,23.9552]
[1644295245000,2.1300533,118.29,118.16,24.9117]
[1644295245202,12.26,118.28,118.17,43.6018936]
[1644295245400,56.84335794,118.27,118.17,43.6018936]
[1644295245601,12.26,118.26,118.17,68.5735936]
[1644295245800,45.29853694,118.25,118.17,68.5735936]
[1644295246699,12.694,118.24,118.17,68.8235936]
[1644295247100,34.19839224,118.23,118.17,68.8235936]
[1644295247902,12.694,118.24,118.17,68.8235936]
[1644295248303,12.694,118.24,118.17,24.9717]
[1644295248502,12.694,118.24,118.16,24.9117]
[1644295249302,45.4783815,118.23,118.17,43.6953004]
[1644295249503,58.1738815,118.23,118.17,43.6953004]
[1644295255911,12.6955,118.23,118.17,43.6953004]
[1644295256111,12.6955,118.23,118.17,43.9453004]
[1644295256313,78.5643,118.27,118.17,45.58719916]
[1644295256513,78.5643,118.27,118.18,0.024]
[1644295257116,43.48293368,118.26,118.18,0.024]
[1644295257713,12.6933,118.25,118.18,0.024]
[1644295257916,44.2571055,118.24,118.18,0.024]
[1644295259717,56.9507055,118.24,118.18,0.024]
[1644295259919,57.2007055,118.24,118.18,0.024]
[1644295261217,69.4607055,118.24,118.18,0.024]
[1644295261617,69.4607055,118.24,118.17,0.024]
[1644295265723,57.2007055,118.24,118.17,0.024]
[1644295266924,56.9507055,118.24,118.17,0.024]
[1644295268929,12.6936,118.24,118.17,0.024]
[1644295269129,12.6936,118.24,118.17,1.66675064]
[1644295269331,12.6936,118.24,118.18,0.024]
[1644295269950,61.13559406,118.24,118.18,47.1370134]
[1644295270330,61.13559406,118.24,118.18,47.3870134]
[1644295270530,61.38559406,118.24,118.18,47.3870134]
[1644295270730,61.38559406,118.24,118.18,47.1370134]
[1644295270933,61.38559406,118.24,118.18,47.1130134]
[1644295272537,61.38559406,118.24,118.18,0.25]
[1644295272732,61.38559406,118.24,118.17,0.024]
[1644295273535,61.38559406,118.24,118.17,39.8377094]
[1644295273738,61.38559406,118.24,118.18,0.024]
[1644295276135,61.38559406,118.24,118.17,0.024]
[1644295277759,61.38559406,118.24,118.17,45.84980858]
[1644295278060,61.38559406,118.24,118.18,0.024]
[1644295284061,61.13559406,118.24,118.18,0.024]
[1644295287766,61.38559406,118.24,118.18,0.024]
[1644295288969,12.9436,118.24,118.18,0.024]
[1644295289168,12.6936,118.24,118.18,0.024]
[1644295289368,12.691,118.25,118.18,12.716]
[1644295289570,480.74390313,118.28,118.18,45.18468057]
[1644295289768,480.74390313,118.28,118.18,45.43468057]
[1644295289969,42.2570695,118.27,118.19,37.82275196]
[1644295290270,42.2570695,118.27,118.2,0.024]
[1644295291076,12.6901,118.26,118.2,0.024]
[1644295291271,42.09170741,118.25,118.2,0.024]
[1644295291471,42.09170741,118.25,118.19,0.024]
[1644295292070,12.6937,118.24,118.19,0.024]
[1644295292274,12.6937,118.24,118.18,24.842]
[1644295292474,39.02709172,118.23,118.18,24.842]
[1644295293272,12.6956,118.22,118.17,0.024]
[1644295293472,12.6956,118.22,118.16,0.024]
[1644295294273,45.96564526,118.21,118.16,0.024]
[1644295294473,12.698,118.2,118.16,0.024]
[1644295294774,40.19862118,118.19,118.16,0.024]
[1644295294975,40.19862118,118.19,118.17,3.13877011]
[1644295296177,40.44862118,118.19,118.17,3.13877011]
[1644295296774,12.6985,118.18,118.17,3.13877011]
[1644295298678,12.6985,118.18,118.15,0.024]
[1644295298875,12.6985,118.18,118.16,3.03219997]
[1644295302379,12.6985,118.18,118.17,1.06940296]
[1644295302980,12.6963,118.2,118.17,1.06940296]
[1644295303180,12.6963,118.2,118.18,3.03219997]
[1644295303379,12.6963,118.2,118.15,23.557]
[1644295303579,12.6963,118.2,118.15,23.533]
[1644295303782,51.66644672,118.2,118.15,23.807]
[1644295304580,51.66644672,118.2,118.15,0.024]
[1644295304782,51.66644672,118.2,118.14,23.55407072]
[1644295304980,51.66644672,118.2,118.14,68.11891454]
[1644295305881,51.91644672,118.2,118.14,68.11891454]
[1644295315817,51.91644672,118.2,118.14,80.81611454]
[1644295316017,12.9463,118.2,118.14,80.81611454]
[1644295319018,12.9463,118.2,118.14,81.06611454]
[1644295319417,12.6963,118.2,118.14,81.06611454]
[1644295321220,12.6963,118.2,118.14,82.68855072]
[1644295321621,42.3217,118.23,118.18,3.4884968]
[1644295321622,12.6953,118.21,118.18,3.4884968]
[1644295322124,12.6953,118.21,118.19,38.04921166]
[1644295322922,12.6953,118.21,118.19,3.03219997]
[1644295323923,44.61631572,118.2,118.19,3.03219997]
[1644295324124,12.6973,118.19,118.18,3.4884968]
[1644295324927,12.6973,118.19,118.14,0.09707072]
[1644295325122,12.6973,118.19,118.14,0.07307072]
[1644295325323,1.20646377,118.18,118.14,0.07307072]
[1644295325523,12.7034,118.17,118.14,0.07307072]
[1644295325724,50.23901622,118.17,118.14,0.07307072]
[1644295327726,12.9534,118.17,118.14,0.07307072]
[1644295329627,37.66882375,118.16,118.14,0.07307072]
[1644295329831,13.46646377,118.2,118.15,3.03219997]
[1644295330032,398.92551409,118.21,118.15,3.03219997]
[1644295330230,398.92551409,118.21,118.15,3.28219997]
[1644295330435,397.71905032,118.21,118.15,3.28219997]
[1644295330830,47.18309174,118.2,118.15,3.28219997]
[1644295331032,59.88159174,118.2,118.15,3.28219997]
[1644295331233,59.88159174,118.2,118.15,3.03219997]
[1644295331431,59.88159174,118.2,118.14,0.07307072]
[1644295331632,47.43309174,118.2,118.14,0.07307072]
[1644295333132,47.43309174,118.2,118.18,1.3706792]
[1644295334532,47.18309174,118.2,118.18,1.3706792]
[1644295337536,59.87979174,118.2,118.18,1.3706792]
[1644295338937,59.87979174,118.2,118.14,37.75157072]
[1644295339138,59.87979174,118.2,118.1,0.29714508]
[1644295339337,59.87979174,118.2,118.1,0.88171084]
[1644295339338,2.1300533,118.19,118.1,0.88171084]
[1644295339538,3.33651707,118.19,118.1,0.88171084]
[1644295339737,12.7033,118.17,118.1,0.88171084]
[1644295339939,37.05654849,118.16,118.1,0.88171084]
[1644295340341,39.18660179,118.16,118.1,0.88171084]
[1644295340541,51.44660179,118.16,118.1,0.88171084]
[1644295340738,2.1300533,118.15,118.04,6.0]
[1644295340946,27.0960533,118.15,118.02,50.05764048]
[1644295341141,40.22051707,118.15,118.01,1.3171684]
[1644295341344,1.20646377,118.13,118.01,1.3171684]
[1644295341542,13.46646377,118.13,118.01,0.8171684]
[1644295341839,36.66502418,118.12,118.01,0.8171684]
[1644295342440,12.7118,118.1,118.01,0.8171684]
[1644295342840,2.1300533,118.09,118.01,0.8171684]
[1644295343042,12.26,118.11,118.01,0.8171684]
[1644295343242,34.53937679,118.08,118.01,0.8171684]
[1644295343440,47.62505624,118.06,118.01,0.8171684]
[1644295344244,47.87505624,118.06,118.01,0.8171684]
[1644295344441,47.87505624,118.06,118.01,41.88413134]
[1644295344842,12.7141,118.05,118.01,41.88413134]
[1644295346846,12.7141,118.05,118.01,0.8171684]
[1644295347048,12.60633,118.04,118.01,0.8171684]
[1644295347248,12.7165,118.03,118.01,0.8171684]
[1644295347448,12.7165,118.03,118.02,3.03219997]
[1644295347648,12.7165,118.03,118.01,3.84936837]
[1644295347948,61.00521847,118.03,118.01,3.84936837]
[1644295348251,61.00521847,118.03,118.01,2.34936837]
[1644295348649,61.00521847,118.03,118.02,3.03219997]
[1644295349050,61.00521847,118.03,118.01,2.34936837]
[1644295350051,61.00521847,118.03,118.01,5.38156834]
[1644295350755,61.25521847,118.03,118.0,1.02761042]
[1644295350954,61.25521847,118.03,117.97,0.4201279]
[1644295351654,71.73121847,118.03,117.97,0.4201279]
[1644295351852,71.73121847,118.03,117.97,0.354612]
[1644295352971,71.48121847,118.03,117.97,0.354612]
[1644295354373,71.73121847,118.03,117.97,0.354612]
[1644295354772,12.7217,118.01,117.97,0.354612]
[1644295355574,42.38738909,118.0,117.97,0.354612]
[1644295355976,0.6828316,117.99,117.94,0.024]
[1644295356174,13.4050316,117.99,117.94,0.024]
[1644295356375,13.4050316,117.99,117.92,0.024]
[1644295356975,34.30392794,117.98,117.92,0.024]
[1644295357174,12.7258,117.97,117.91,1.86863232]
[1644295357478,24.860794,117.96,117.86,0.06571466]
[1644295357677,14.3900533,117.96,117.86,0.06571466]
[1644295357874,2.1300533,117.95,117.86,0.06571466]
[1644295358076,12.26,117.95,117.86,0.06571466]
[1644295358276,12.7288,117.93,117.86,0.06571466]
[1644295358480,44.25586127,117.94,117.86,0.06571466]
[1644295358481,45.76670887,117.92,117.86,0.06571466]
[1644295359778,45.76670887,117.92,117.85,39.73752024]
[1644295360986,12.729,117.93,117.85,39.73752024]
[1644295361187,60.9568,117.97,117.85,47.36665249]
[1644295361385,60.9568,117.97,117.86,24.9331]
[1644295361586,42.4197,117.99,117.86,30.9331]
[1644295361785,46.4163,118.02,117.87,1.62913225]
[1644295361986,47.59984932,118.0,117.89,12.7204]
[1644295362188,47.59984932,118.0,117.9,43.5157968]
[1644295362389,47.59984932,118.0,117.9,45.14492905]
[1644295362588,47.59984932,118.0,117.9,45.39492905]
[1644295362789,47.59984932,118.0,117.9,43.5157968]
[1644295362989,47.84984932,118.0,117.9,43.5157968]
[1644295363189,47.84984932,118.0,117.9,43.7657968]
[1644295363794,60.57134932,118.0,117.9,43.7657968]
[1644295364297,60.32134932,118.0,117.9,43.7657968]
[1644295365494,60.32134932,118.0,117.9,43.5157968]
[1644295365694,60.57134932,118.0,117.9,43.5157968]
[1644295366695,60.57134932,118.0,117.9,43.7657968]
[1644295367798,60.57134932,118.0,117.9,43.5157968]
[1644295368297,60.57134932,118.0,117.9,43.7657968]
[1644295368699,60.57134932,118.0,117.9,43.5157968]
[1644295369197,12.7274,117.96,117.86,0.13142932]
[1644295369796,2.1300533,117.95,117.86,0.13142932]
[1644295370196,40.95555967,117.94,117.86,0.13142932]
[1644295371201,24.8976,117.96,117.86,0.13142932]
[1644295371398,12.7279,117.95,117.86,1.7563974]
[1644295371601,27.0140533,117.99,117.86,7.7563974]
[1644295371602,24.884,117.99,117.86,7.7563974]
[1644295371800,24.884,117.99,117.87,24.0436]
[1644295372001,24.479585,117.98,117.87,24.0436]
[1644295372200,36.90447572,117.97,117.88,39.99123271]
[1644295372601,36.90447572,117.97,117.89,0.024]
[1644295373001,37.607,117.99,117.89,0.024]
[1644295373201,24.656333,117.98,117.89,0.024]
[1644295373403,24.656333,117.98,117.89,1.64896808]
[1644295373601,24.656333,117.98,117.9,0.024]
[1644295374003,24.656333,117.99,117.91,1.62496808]
[1644295374203,24.656333,117.97,117.92,34.46325897]
[1644295374403,44.10205835,117.97,117.93,0.024]
[1644295374702,44.10205835,117.97,117.92,34.43925897]
[1644295374703,44.35205835,117.97,117.92,34.43925897]
[1644295375705,44.10205835,117.97,117.92,34.43925897]
[1644295376406,12.7226,117.99,117.92,34.43925897]
[1644295376703,12.7226,117.99,117.93,0.024]
[1644295377204,37.47565275,117.98,117.93,0.024]
[1644295377404,37.47565275,117.98,117.92,34.43925897]
[1644295377604,37.47565275,117.98,117.9,0.024]